[Event "Championnat du monde jeunes U10"]
[Date "2024.11.19"]
[White "Dayal, Samar"]
[Black "Burba, Mikita"]
[WhiteElo "1818"]
[BlackElo "1528"]
[Round "5.28"]
[Result "1-0"]
[TimeControl "5400+30"]

1. e4 {[%clk 1:30:59]} 1... c5 {[%clk 1:30:54]} 2. Nf3 {[%clk 1:31:27]} 2... Nc6
{[%clk 1:31:15]} 3. d4 {[%clk 1:31:51]} 3... cxd4 {[%clk 1:31:40]} 4. Nxd4
{[%clk 1:32:19]} 4... g6 {[%clk 1:31:57]} 5. Nc3 {[%clk 1:32:44]} 5... Bg7
{[%clk 1:32:22]} 6. Be3 {[%clk 1:33:10]} 6... Nf6 {[%clk 1:32:42]} 7. Bc4 {[%clk
1:33:39]} 7... O-O {[%clk 1:33:00]} 8. Bb3 {[%clk 1:34:07]} 8... Re8 {[%clk
1:33:20]} 9. f3 {[%clk 1:34:20]} 9... e6 {[%clk 1:32:46]} 10. f4 {[%clk
1:34:50]} 10... d6 {[%clk 1:22:57]} 11. Qf3 {[%clk 1:35:04]} 11... Nxd4 {[%clk
1:08:02]} 12. Bxd4 {[%clk 1:35:31]} 12... Bd7 {[%clk 1:06:09]} 13. h3 {[%clk
1:20:38]} 13... Bc6 {[%clk 0:56:07]} 14. O-O-O {[%clk 1:08:29]} 14... Qc7 {[%clk
0:54:02]} 15. g4 {[%clk 1:06:45]} 15... b5 {[%clk 0:53:06]} 16. g5 {[%clk
1:06:10]} 16... Nh5 {[%clk 0:50:25]} 17. Bxg7 {[%clk 1:05:59]} 17... Kxg7 {[%clk
0:49:40]} 18. Ne2 {[%clk 0:59:16]} 18... Kg8 {[%clk 0:41:27]} 19. Nd4 {[%clk
0:45:57]} 19... Rac8 {[%clk 0:32:48]} 20. Rh2 {[%clk 0:40:54]} 20... a5 {[%clk
0:30:38]} 21. a3 {[%clk 0:41:13]} 21... Qb7 {[%clk 0:25:52]} 22. Nxc6 {[%clk
0:41:12]} 22... Qxc6 {[%clk 0:19:00]} 23. Rf1 {[%clk 0:34:24]} 23... a4 {[%clk
0:18:34]} 24. Ba2 {[%clk 0:34:45]} 24... Ng7 {[%clk 0:08:01]} 25. h4 {[%clk
0:34:31]} 25... Qc5 {[%clk 0:06:30]} 26. h5 {[%clk 0:29:07]} 26... gxh5 {[%clk
0:03:10]} 27. f5 {[%clk 0:21:21]} 27... exf5 {[%clk 0:03:30]} 28. exf5 {[%clk
0:21:48]} 28... Qe5 {[%clk 0:02:59]} 29. f6 {[%clk 0:18:42]} 29... Ne6 {[%clk
0:01:36]} 30. Bxe6 {[%clk 0:12:36]} 30... Rxe6 {[%clk 0:01:19]} 31. Qxh5 {[%clk
0:12:53]} 31... Qe4 {[%clk 0:01:03]} 32. Rfh1 {[%clk 0:11:39]} 32... Kf8 {[%clk
0:00:59]} 33. Qxh7 {[%clk 0:11:24]} 33... Qxh7 {[%clk 0:00:47]} 34. Rxh7 {[%clk
0:11:53]} 34... Ke8 {[%clk 0:01:07]} 35. Rh8+ {[%clk 0:12:08]} 35... Kd7 {[%clk
0:01:31]} 36. Rxc8 {[%clk 0:12:35]} 36... Kxc8 {[%clk 0:01:55]} 37. g6 {[%clk
0:12:57]} 37... Re8 {[%clk 0:01:04]} 38. g7 {[%clk 0:13:22]} 38... Kd7 {[%clk
0:00:54]} 39. Rh8 {[%clk 0:13:51]} 39... Re1+ {[%clk 0:01:12]} 40. Kd2 {[%clk
0:14:20]} 40... Rg1 {[%clk 0:01:36]} 41. g8=Q {[%clk 0:14:43]} 41... Rxg8 42.
Rxg8 {[%clk 0:15:08]} 42... Ke6 {[%clk 0:02:30]} 43. Rb8 {[%clk 0:15:36]} 43...
Kxf6 {[%clk 0:02:52]} 44. Rxb5 {[%clk 0:16:04]} 44... Ke6 {[%clk 0:03:15]} 45.
b3 {[%clk 0:16:30]} 45... f5 {[%clk 0:03:40]} 46. bxa4 {[%clk 0:16:58]} 46... d5
{[%clk 0:04:06]} 47. a5 {[%clk 0:17:25]} 47... f4 {[%clk 0:04:32]} 48. a6 {[%clk
0:17:54]} 48... f3 {[%clk 0:04:51]} 49. a7 {[%clk 0:18:21]} 49... f2 {[%clk
0:05:16]} 50. Ke2 {[%clk 0:18:50]} 50... d4 {[%clk 0:05:12]} 51. a8=Q {[%clk
0:19:17]} 51... d3+ {[%clk 0:05:34]} 52. Kxf2 {[%clk 0:19:22]} 52... dxc2 {[%clk
0:05:57]} 53. Qc6+ {[%clk 0:19:41]} 53... Ke7 {[%clk 0:05:52]} 54. Rb7+ {[%clk
0:20:10]} 54... Kd8 {[%clk 0:05:59]} 55. Qd7# {[%clk 0:20:38]} 1-0

[Variant "Standard"]
[Site "Europe Echecs"]

[Event "Championnat du monde jeunes U10"]
[Date "2024.11.19"]
[White "Kostyukovich, Ivan"]
[Black "Nikitakis, Michail"]
[WhiteElo "1489"]
[BlackElo "1818"]
[Round "5.29"]
[Result "0-1"]
[TimeControl "5400+30"]

1. e4 {[%clk 1:30:57]} 1... e5 {[%clk 1:30:53]} 2. Nf3 {[%clk 1:31:15]} 2... Nc6
{[%clk 1:31:16]} 3. Bc4 {[%clk 1:31:27]} 3... Nf6 {[%clk 1:31:39]} 4. Ng5 {[%clk
1:31:48]} 4... d5 {[%clk 1:32:00]} 5. exd5 {[%clk 1:32:00]} 5... Na5 {[%clk
1:32:22]} 6. Bb5+ {[%clk 1:32:09]} 6... Bd7 {[%clk 1:32:44]} 7. Qe2 {[%clk
1:28:47]} 7... Be7 {[%clk 1:32:48]} 8. Nc3 {[%clk 1:27:46]} 8... O-O {[%clk
1:32:26]} 9. O-O {[%clk 1:27:42]} 9... Re8 {[%clk 1:31:39]} 10. Bxd7 {[%clk
1:26:57]} 10... Qxd7 {[%clk 1:31:37]} 11. Nf3 {[%clk 1:25:38]} 11... Bb4 {[%clk
1:09:24]} 12. a3 {[%clk 1:24:10]} 12... Bxc3 {[%clk 1:04:11]} 13. dxc3 {[%clk
1:24:13]} 13... Qxd5 {[%clk 1:01:38]} 14. Rd1 {[%clk 1:19:53]} 14... Qe4 {[%clk
0:52:05]} 15. Qxe4 {[%clk 1:19:21]} 15... Nxe4 {[%clk 0:51:17]} 16. Be3 {[%clk
1:17:07]} 16... f5 {[%clk 0:46:37]} 17. Rd5 {[%clk 1:10:54]} 17... Nc6 {[%clk
0:44:49]} 18. Re1 {[%clk 1:06:29]} 18... Rad8 {[%clk 0:39:46]} 19. Red1 {[%clk
1:05:31]} 19... Rxd5 {[%clk 0:39:33]} 20. Rxd5 {[%clk 1:05:48]} 20... Nf6 {[%clk
0:39:43]} 21. Rd1 {[%clk 1:05:22]} 21... f4 {[%clk 0:39:28]} 22. Bc1 {[%clk
1:05:28]} 22... h6 {[%clk 0:21:09]} 23. h4 Rf8 {[%clk 0:09:16]} 24. b4 {[%clk
0:59:51]} 24... a6 {[%clk 0:07:22]} 25. c4 {[%clk 0:59:25]} 25... b5 {[%clk
0:07:15]} 26. cxb5 {[%clk 0:59:48]} 26... axb5 {[%clk 0:07:35]} 27. Bb2 {[%clk
1:00:12]} 27... Re8 {[%clk 0:06:09]} 28. Re1 {[%clk 0:59:50]} 28... Nd7 {[%clk
0:05:35]} 29. Re4 {[%clk 0:58:55]} 29... Nb6 {[%clk 0:03:51]} 30. Bc1 {[%clk
0:56:06]} 30... Nc4 {[%clk 0:04:08]} 31. Re1 {[%clk 0:55:12]} 31... Rd8 32. Kf1
{[%clk 0:54:24]} 32... Rd5 {[%clk 0:00:37]} 33. Ke2 {[%clk 0:53:49]} 33... e4
{[%clk 0:00:48]} 34. Nd2 {[%clk 0:53:51]} 34... Nd4+ {[%clk 0:00:33]} 35. Kf1
{[%clk 0:51:49]} 35... Nxc2 {[%clk 0:00:34]} 36. Nxc4 {[%clk 0:51:26]} 36...
Nxe1 {[%clk 0:00:31]} 37. Kxe1 {[%clk 0:51:55]} 37... bxc4 {[%clk 0:00:50]} 38.
Bxf4 {[%clk 0:52:24]} 38... c3 {[%clk 0:00:34]} 39. g3 {[%clk 0:51:54]} 39... c2
{[%clk 0:00:42]} 40. Bd2 {[%clk 0:52:23]} 40... Rd3 {[%clk 0:00:43]} 41. b5
{[%clk 0:52:23]} 41... Rxa3 {[%clk 0:00:54]} 42. Bc1 {[%clk 0:52:51]} 42... Rd3
{[%clk 0:00:59]} 43. Bd2 {[%clk 0:52:51]} 43... Rd5 {[%clk 0:01:18]} 44. Ke2
{[%clk 0:52:12]} 44... Rxb5 {[%clk 0:01:19]} 45. Bc1 {[%clk 0:52:37]} 45... Rd5
{[%clk 0:01:29]} 46. Bd2 {[%clk 0:53:05]} 46... c5 {[%clk 0:01:42]} 47. g4
{[%clk 0:53:13]} 47... c4 {[%clk 0:02:04]} 48. g5 {[%clk 0:53:42]} 48... c3
{[%clk 0:02:22]} 49. Be3 {[%clk 0:53:52]} 49... Rd1 {[%clk 0:02:38]} 50. gxh6
{[%clk 0:54:07]} 50... c1=Q {[%clk 0:02:47]} 51. Bxc1 {[%clk 0:54:29]} 51...
Rxc1 {[%clk 0:03:01]} 52. hxg7 {[%clk 0:54:59]} 52... Rh1 {[%clk 0:03:13]} 53.
h5 {[%clk 0:55:22]} 53... c2 {[%clk 0:03:41]} 54. h6 {[%clk 0:55:49]} 54... c1=Q
{[%clk 0:03:03]} 55. h7+ {[%clk 0:56:15]} 55... Kxg7 {[%clk 0:03:13]} 56. h8=B+
{[%clk 0:56:42]} 56... Kxh8 {[%clk 0:03:30]} 0-1

[Variant "Standard"]
[Site "Europe Echecs"]

[Event "Championnat du monde jeunes U10"]
[Date "2024.11.19"]
[White "Czech, Emil"]
[Black "Zhang, Oscar Y"]
[WhiteElo "1608"]
[BlackElo "1817"]
[Round "5.30"]
[Result "0-1"]
[TimeControl "5400+30"]

1. e4 {[%clk 1:30:59]} 1... c5 {[%clk 1:30:54]} 2. Nf3 {[%clk 1:31:22]} 2... d6
{[%clk 1:31:16]} 3. d4 {[%clk 1:31:45]} 3... cxd4 {[%clk 1:31:35]} 4. Qxd4
{[%clk 1:32:07]} 4... Nc6 {[%clk 1:30:48]} 5. Qe3 {[%clk 1:32:28]} 5... Nf6
{[%clk 1:30:11]} 6. h3 {[%clk 1:32:38]} 6... e6 {[%clk 1:29:49]} 7. Be2 {[%clk
1:31:44]} 7... Be7 {[%clk 1:29:46]} 8. O-O {[%clk 1:31:51]} 8... O-O {[%clk
1:29:59]} 9. Rd1 {[%clk 1:31:56]} 9... Qc7 {[%clk 1:29:26]} 10. c4 {[%clk
1:31:03]} 10... a6 {[%clk 1:26:46]} 11. Nc3 {[%clk 1:30:41]} 11... Bd7 {[%clk
1:26:34]} 12. b3 {[%clk 1:29:10]} 12... Rad8 {[%clk 1:23:03]} 13. Ba3 {[%clk
1:27:16]} 13... Rfe8 {[%clk 1:22:55]} 14. Rd2 {[%clk 1:23:25]} 14... Bc8 {[%clk
1:16:30]} 15. Rad1 {[%clk 1:22:15]} 15... h6 {[%clk 1:15:18]} 16. Bb2 {[%clk
1:09:13]} 16... Nh7 {[%clk 1:14:46]} 17. Nh2 {[%clk 1:05:36]} 17... d5 {[%clk
1:04:41]} 18. Qd3 {[%clk 0:51:03]} 18... d4 {[%clk 1:02:33]} 19. Nb1 {[%clk
0:42:56]} 19... Bg5 {[%clk 1:02:49]} 20. a3 {[%clk 0:36:47]} 20... Bxd2 {[%clk
1:02:48]} 21. Nxd2 {[%clk 0:36:43]} 21... e5 {[%clk 1:03:11]} 22. Bg4 {[%clk
0:31:26]} 22... Nf8 {[%clk 1:02:15]} 23. b4 {[%clk 0:23:51]} 23... Ne6 {[%clk
1:00:30]} 24. c5 {[%clk 0:16:15]} 24... Nf4 {[%clk 0:58:22]} 25. Qb3 {[%clk
0:16:37]} 25... Be6 {[%clk 0:57:31]} 26. Bxe6 {[%clk 0:14:51]} 26... Rxe6 {[%clk
0:57:38]} 27. Ndf1 {[%clk 0:13:49]} 27... Rg6 {[%clk 0:57:04]} 28. Ng3 {[%clk
0:12:50]} 28... Qe7 {[%clk 0:54:06]} 29. Bc1 {[%clk 0:12:01]} 29... d3 {[%clk
0:50:59]} 30. Nf3 {[%clk 0:09:43]} 30... Nd4 {[%clk 0:48:21]} 31. Nxd4 {[%clk
0:09:48]} 31... Rxd4 {[%clk 0:48:46]} 32. Qb2 {[%clk 0:03:52]} 32... Qd8 {[%clk
0:45:48]} 33. Bxf4 {[%clk 0:02:03]} 33... exf4 {[%clk 0:46:02]} 34. Nf5 {[%clk
0:02:18]} 34... Rxe4 {[%clk 0:45:17]} 35. h4 {[%clk 0:00:35]} 35... Qf6 {[%clk
0:40:05]} 36. Qxf6 {[%clk 0:00:50]} 36... Rxf6 {[%clk 0:40:30]} 37. Nd6 {[%clk
0:01:15]} 37... Rd4 {[%clk 0:40:52]} 38. Nxb7 {[%clk 0:01:26]} 38... d2 {[%clk
0:41:14]} 39. Kf1 {[%clk 0:01:24]} 39... Re6 {[%clk 0:41:27]} 40. Na5 {[%clk
0:01:43]} 40... Rde4 {[%clk 0:41:52]} 0-1

[Variant "Standard"]
[Site "Europe Echecs"]

[Event "Championnat du monde jeunes U10"]
[Date "2024.11.19"]
[White "Cao, Frank Zhongtian"]
[Black "Otetileu, Amanbek"]
[WhiteElo "1793"]
[BlackElo "1632"]
[Round "5.31"]
[Result "1/2-1/2"]
[TimeControl "5400+30"]

1. e4 {[%clk 1:30:59]} 1... c5 {[%clk 1:30:52]} 2. Nf3 {[%clk 1:31:21]} 2... d6
{[%clk 1:31:04]} 3. d4 {[%clk 1:31:48]} 3... cxd4 {[%clk 1:31:27]} 4. Nxd4
{[%clk 1:32:15]} 4... Nf6 {[%clk 1:31:50]} 5. Nc3 {[%clk 1:32:40]} 5... Nc6
{[%clk 1:32:15]} 6. Bg5 {[%clk 1:33:04]} 6... e6 {[%clk 1:32:39]} 7. Qd2 {[%clk
1:33:31]} 7... Be7 {[%clk 1:33:04]} 8. O-O-O {[%clk 1:31:02]} 8... Nxd4 {[%clk
1:33:09]} 9. Qxd4 {[%clk 1:31:22]} 9... O-O {[%clk 1:33:33]} 10. f3 {[%clk
1:29:33]} 10... Qa5 {[%clk 1:32:23]} 11. Be3 {[%clk 1:25:21]} 11... Bd7 {[%clk
1:30:56]} 12. Kb1 {[%clk 1:17:03]} 12... Rfc8 {[%clk 1:29:41]} 13. Qd2 {[%clk
1:15:23]} 13... b6 {[%clk 1:28:15]} 14. Ne2 {[%clk 1:04:34]} 14... Qxd2 {[%clk
1:24:54]} 15. Rxd2 {[%clk 1:04:54]} 15... d5 {[%clk 1:25:04]} 16. e5 {[%clk
0:55:02]} 16... Ne8 {[%clk 1:19:19]} 17. Bd4 {[%clk 0:48:11]} 17... Bc5 {[%clk
1:08:52]} 18. f4 {[%clk 0:42:33]} 18... Kf8 {[%clk 1:06:06]} 19. g3 {[%clk
0:36:03]} 19... Ke7 {[%clk 1:01:51]} 20. Bg2 {[%clk 0:36:07]} 20... h5 {[%clk
1:01:11]} 21. Bxc5+ {[%clk 0:24:08]} 21... Rxc5 {[%clk 1:01:17]} 22. Nd4 {[%clk
0:23:55]} 22... a5 {[%clk 1:00:50]} 23. Bf3 {[%clk 0:22:02]} 23... g6 {[%clk
0:59:30]} 24. h3 {[%clk 0:21:48]} 24... Ng7 {[%clk 0:57:12]} 25. g4 {[%clk
0:21:07]} 25... Rh8 {[%clk 0:57:33]} 26. g5 {[%clk 0:18:34]} 26... a4 {[%clk
0:50:00]} 27. a3 {[%clk 0:14:20]} 27... b5 {[%clk 0:48:53]} 28. h4 {[%clk
0:13:16]} 28... Rb8 {[%clk 0:49:20]} 29. c3 {[%clk 0:13:26]} 29... Rc4 {[%clk
0:47:32]} 30. Be2 {[%clk 0:13:36]} 30... Rcc8 {[%clk 0:47:16]} 31. Bf3 {[%clk
0:13:53]} 31... Rc4 {[%clk 0:47:39]} 32. Be2 Ra8 1/2-1/2

[Variant "Standard"]
[Site "Europe Echecs"]

[Event "Championnat du monde jeunes U10"]
[Date "2024.11.19"]
[White "Ilko-Toth, Andras"]
[Black "Shrubok, Herman"]
[WhiteElo "2115"]
[BlackElo "1477"]
[Round "5.32"]
[Result "1-0"]
[TimeControl "5400+30"]

1. d4 {[%clk 1:31:00]} 1... Nf6 {[%clk 1:30:39]} 2. Nf3 {[%clk 1:31:25]} 2... g6
{[%clk 1:30:46]} 3. g3 {[%clk 1:31:45]} 3... Bg7 {[%clk 1:30:50]} 4. Bg2 {[%clk
1:32:07]} 4... O-O {[%clk 1:31:06]} 5. O-O {[%clk 1:32:27]} 5... d6 {[%clk
1:28:45]} 6. Nc3 {[%clk 1:32:35]} 6... d5 {[%clk 1:26:56]} 7. Re1 {[%clk
1:32:54]} 7... Bf5 {[%clk 1:24:36]} 8. Nh4 {[%clk 1:31:53]} 8... Be6 {[%clk
1:20:54]} 9. e4 {[%clk 1:25:45]} 9... dxe4 {[%clk 1:18:50]} 10. Nxe4 {[%clk
1:24:33]} 10... Nxe4 {[%clk 1:16:56]} 11. Bxe4 {[%clk 1:25:00]} 11... c6 {[%clk
1:14:54]} 12. c3 {[%clk 1:23:30]} 12... Nd7 {[%clk 1:12:52]} 13. Bg5 {[%clk
1:17:44]} 13... Nf6 {[%clk 1:08:24]} 14. Bg2 {[%clk 1:17:00]} 14... Bd5 {[%clk
1:06:59]} 15. Qd2 {[%clk 1:01:51]} 15... Bxg2 {[%clk 1:01:55]} 16. Nxg2 {[%clk
1:00:31]} 16... Qd5 {[%clk 0:59:37]} 17. Bh6 {[%clk 0:43:42]} 17... Ne4 {[%clk
0:54:23]} 18. Qf4 {[%clk 0:41:30]} 18... Bxh6 {[%clk 0:54:08]} 19. Qxe4 {[%clk
0:33:44]} 19... Qxe4 {[%clk 0:53:46]} 20. Rxe4 {[%clk 0:33:49]} 20... e6 {[%clk
0:53:46]} 21. Ne1 {[%clk 0:31:35]} 21... Rad8 {[%clk 0:53:27]} 22. Nd3 {[%clk
0:29:20]} 22... Rd6 {[%clk 0:51:52]} 23. a4 {[%clk 0:25:01]} 23... Rfd8 {[%clk
0:50:38]} 24. Nc5 {[%clk 0:23:40]} 24... Rb8 {[%clk 0:50:17]} 25. a5 {[%clk
0:23:30]} 25... Rdd8 {[%clk 0:50:08]} 26. b4 {[%clk 0:18:44]} 26... b6 {[%clk
0:48:45]} 27. Nd3 {[%clk 0:18:03]} 27... Bd2 {[%clk 0:47:42]} 28. Ra3 {[%clk
0:17:08]} 28... bxa5 {[%clk 0:48:02]} 29. Re2 {[%clk 0:17:19]} 29... axb4 {[%clk
0:46:45]} 30. Nxb4 {[%clk 0:17:39]} 30... Bxc3 {[%clk 0:46:26]} 31. Nxc6 {[%clk
0:17:54]} 31... Bxd4 {[%clk 0:45:22]} 32. Nxd8 {[%clk 0:17:04]} 32... Rxd8
{[%clk 0:45:43]} 33. Rd2 {[%clk 0:16:16]} 33... Bb6 {[%clk 0:46:05]} 34. Rxd8+
{[%clk 0:16:38]} 34... Bxd8 {[%clk 0:46:30]} 35. Rxa7 {[%clk 0:17:01]} 35... Bf6
{[%clk 0:46:52]} 36. Kg2 {[%clk 0:17:03]} 36... h5 {[%clk 0:47:07]} 37. f4
{[%clk 0:14:59]} 37... e5 {[%clk 0:46:29]} 38. Kf3 {[%clk 0:14:11]} 38... exf4
{[%clk 0:46:35]} 39. gxf4 {[%clk 0:14:31]} 39... Bh4 {[%clk 0:46:34]} 40. f5
{[%clk 0:09:13]} 40... gxf5 {[%clk 0:46:52]} 41. Kf4 {[%clk 0:09:01]} 41... Bf2
{[%clk 0:46:50]} 42. Ra2 {[%clk 0:09:12]} 42... Bc5 {[%clk 0:46:37]} 43. Kg5
{[%clk 0:08:48]} 43... Be7+ {[%clk 0:46:34]} 44. Kxf5 {[%clk 0:07:59]} 44... Kg7
{[%clk 0:46:49]} 45. Rg2+ {[%clk 0:07:54]} 45... Kh6 {[%clk 0:46:59]} 46. Rg8
{[%clk 0:07:28]} 46... Kh7 {[%clk 0:47:11]} 47. Re8 {[%clk 0:07:41]} 47... Bh4
{[%clk 0:47:36]} 48. Re4 {[%clk 0:07:49]} 48... Bd8 {[%clk 0:47:02]} 49. Rd4
{[%clk 0:07:22]} 49... Bc7 {[%clk 0:47:08]} 50. h3 {[%clk 0:07:15]} 50... Bg3
{[%clk 0:47:31]} 51. h4 {[%clk 0:04:38]} 51... Be1 {[%clk 0:47:37]} 52. Kg5
{[%clk 0:03:29]} 52... Bc3 {[%clk 0:46:11]} 53. Rd3 {[%clk 0:03:02]} 53... Bh8
{[%clk 0:45:55]} 54. Kxh5 {[%clk 0:03:02]} 54... Bf6 {[%clk 0:46:03]} 55. Rf3
{[%clk 0:02:57]} 55... Kg7 {[%clk 0:46:22]} 56. Kg4 {[%clk 0:03:23]} 56... Be7
{[%clk 0:46:44]} 57. Rf5 {[%clk 0:02:44]} 57... Bd8 {[%clk 0:46:57]} 58. Rc5
{[%clk 0:02:31]} 58... Kg6 {[%clk 0:47:12]} 59. Rc6+ {[%clk 0:02:44]} 59... Kg7
{[%clk 0:47:11]} 60. h5 {[%clk 0:02:45]} 60... Ba5 {[%clk 0:47:19]} 61. h6+
{[%clk 0:01:37]} 61... Kh7 {[%clk 0:47:43]} 62. Kh5 {[%clk 0:01:49]} 62... Bd2
{[%clk 0:47:48]} 63. Rc7 {[%clk 0:01:43]} 63... Kg8 {[%clk 0:47:12]} 64. h7+
{[%clk 0:02:03]} 64... Kxh7 {[%clk 0:47:36]} 65. Rxf7+ {[%clk 0:02:25]} 65...
Kg8 {[%clk 0:47:58]} 66. Kg6 {[%clk 0:02:50]} 66... Bc3 {[%clk 0:47:44]} 67. Rc7
{[%clk 0:03:13]} 1-0

[Variant "Standard"]
[Site "Europe Echecs"]

[Event "Championnat du monde jeunes U10"]
[Date "2024.11.19"]
[White "Aghoyan, Gevorg"]
[Black "Ten Dam, Bram"]
[WhiteElo "1682"]
[BlackElo "2012"]
[Round "5.33"]
[Result "0-1"]
[TimeControl "5400+30"]

1. e4 {[%clk 1:30:57]} 1... c5 {[%clk 1:30:53]} 2. Nf3 {[%clk 1:31:12]} 2... d6
{[%clk 1:31:17]} 3. d4 {[%clk 1:31:34]} 3... cxd4 {[%clk 1:31:43]} 4. Nxd4
{[%clk 1:31:57]} 4... Nf6 {[%clk 1:32:04]} 5. Nc3 {[%clk 1:32:14]} 5... g6
{[%clk 1:32:29]} 6. Be3 {[%clk 1:31:29]} 6... Bg7 {[%clk 1:32:53]} 7. Bc4 {[%clk
1:30:37]} 7... Nc6 {[%clk 1:32:16]} 8. Bb3 {[%clk 1:29:33]} 8... Ng4 {[%clk
1:26:10]} 9. Nxc6 {[%clk 1:24:48]} 9... bxc6 {[%clk 1:22:24]} 10. Qd2 {[%clk
1:19:22]} 10... Nxe3 {[%clk 1:21:29]} 11. Qxe3 {[%clk 1:19:28]} 11... Qa5 {[%clk
1:17:00]} 12. O-O {[%clk 1:13:45]} 12... O-O {[%clk 1:15:25]} 13. Rab1 {[%clk
1:04:30]} 13... Ba6 {[%clk 1:05:33]} 14. Ne2 {[%clk 1:00:06]} 14... Qb6 {[%clk
1:00:20]} 15. Qf3 {[%clk 0:55:51]} 15... Qc5 {[%clk 0:55:25]} 16. Rfd1 {[%clk
0:47:17]} 16... Rab8 {[%clk 0:47:46]} 17. Nf4 {[%clk 0:38:44]} 17... Bc8 {[%clk
0:39:00]} 18. Nd3 {[%clk 0:33:30]} 18... Qb6 {[%clk 0:35:50]} 19. h3 {[%clk
0:28:00]} 19... a5 {[%clk 0:34:52]} 20. c3 {[%clk 0:26:30]} 20... Qb5 {[%clk
0:29:52]} 21. Qe3 {[%clk 0:21:03]} 21... a4 {[%clk 0:29:05]} 22. Bc2 {[%clk
0:19:28]} 22... c5 {[%clk 0:24:14]} 23. Nf4 {[%clk 0:16:56]} 23... Bh6 {[%clk
0:19:56]} 24. Qg3 {[%clk 0:13:49]} 24... Bxf4 {[%clk 0:19:07]} 25. Qxf4 {[%clk
0:14:01]} 25... Be6 {[%clk 0:19:20]} 26. b3 {[%clk 0:12:50]} 26... axb3 {[%clk
0:17:55]} 27. axb3 {[%clk 0:12:38]} 27... Ra8 {[%clk 0:16:12]} 28. c4 {[%clk
0:12:42]} 28... Qb4 {[%clk 0:15:49]} 29. Ra1 {[%clk 0:12:44]} 29... Qc3 {[%clk
0:14:33]} 30. Rxa8 {[%clk 0:10:43]} 30... Rxa8 {[%clk 0:14:55]} 31. Rc1 {[%clk
0:10:23]} 31... Kf8 {[%clk 0:10:47]} 32. Qh6+ {[%clk 0:08:30]} 32... Qg7 {[%clk
0:10:24]} 33. Qd2 {[%clk 0:08:24]} 33... Ra2 {[%clk 0:10:01]} 34. Qd1 {[%clk
0:08:07]} 34... Qb2 {[%clk 0:09:53]} 35. Kh2 {[%clk 0:07:15]} 35... h5 {[%clk
0:08:02]} 36. Kh1 {[%clk 0:06:37]} 36... Bc8 {[%clk 0:07:35]} 37. Kh2 {[%clk
0:06:23]} 37... Ke8 {[%clk 0:07:44]} 38. Kh1 {[%clk 0:05:59]} 38... g5 {[%clk
0:07:52]} 39. e5 {[%clk 0:04:55]} 39... dxe5 {[%clk 0:04:26]} 40. Be4 {[%clk
0:04:06]} 40... Ra6 {[%clk 0:04:08]} 41. Rb1 {[%clk 0:03:06]} 41... Qd4 {[%clk
0:04:06]} 42. Qf3 {[%clk 0:02:36]} 42... g4 {[%clk 0:03:36]} 43. hxg4 {[%clk
0:02:05]} 43... hxg4 {[%clk 0:03:39]} 44. Qe2 {[%clk 0:02:18]} 44... Rh6+ {[%clk
0:03:25]} 45. Kg1 {[%clk 0:02:40]} 45... g3 {[%clk 0:03:28]} 46. Bc6+ {[%clk
0:02:54]} 46... Rxc6 {[%clk 0:03:20]} 47. Ra1 0-1

[Variant "Standard"]
[Site "Europe Echecs"]

[Event "Championnat du monde jeunes U10"]
[Date "2024.11.19"]
[White "Chen, Chicheng Leon"]
[Black "Tenuun, Tseesuren"]
[WhiteElo "1987"]
[BlackElo "1702"]
[Round "5.34"]
[Result "1-0"]
[TimeControl "5400+30"]

1. e4 {[%clk 1:30:59]} 1... e5 {[%clk 1:30:52]} 2. Nf3 {[%clk 1:31:18]} 2... Nc6
{[%clk 1:31:11]} 3. Bc4 {[%clk 1:31:42]} 3... Nf6 {[%clk 1:31:27]} 4. d4 {[%clk
1:32:07]} 4... exd4 {[%clk 1:26:56]} 5. e5 {[%clk 1:32:31]} 5... d5 {[%clk
1:26:08]} 6. Bb5 {[%clk 1:32:56]} 6... Nd7 {[%clk 1:26:21]} 7. O-O {[%clk
1:32:29]} 7... Be7 {[%clk 1:26:18]} 8. Bxc6 {[%clk 1:32:40]} 8... bxc6 {[%clk
1:26:41]} 9. Nxd4 {[%clk 1:33:06]} 9... Nb8 {[%clk 1:26:56]} 10. Nc3 {[%clk
1:33:19]} 10... O-O {[%clk 1:27:01]} 11. Qf3 {[%clk 1:33:46]} 11... Be6 {[%clk
1:22:12]} 12. Qg3 {[%clk 1:29:43]} 12... Re8 {[%clk 1:14:13]} 13. Bh6 {[%clk
1:25:24]} 13... Bf8 {[%clk 1:14:30]} 14. f4 {[%clk 1:22:34]} 14... f5 {[%clk
1:09:22]} 15. exf6 {[%clk 1:04:49]} 15... Qxf6 {[%clk 1:09:20]} 16. Nxe6 {[%clk
1:05:14]} 16... Rxe6 {[%clk 1:07:52]} 17. Bg5 {[%clk 1:04:45]} 17... Qd4+ {[%clk
1:03:53]} 18. Kh1 {[%clk 1:05:00]} 18... Nd7 {[%clk 0:54:56]} 19. f5 {[%clk
0:56:51]} 19... Bd6 {[%clk 0:43:46]} 20. fxe6 {[%clk 0:40:18]} 20... Bxg3 {[%clk
0:42:45]} 21. exd7 {[%clk 0:40:35]} 21... Qe5 {[%clk 0:37:08]} 22. d8=Q+ {[%clk
0:37:41]} 22... Rxd8 {[%clk 0:37:22]} 23. Bxd8 {[%clk 0:38:04]} 23... Bxh2
{[%clk 0:36:49]} 24. Rae1 {[%clk 0:35:01]} 24... Qh5 {[%clk 0:34:54]} 25. g4
{[%clk 0:34:46]} 25... Qg6 {[%clk 0:28:18]} 26. Kxh2 {[%clk 0:34:41]} 26... Qd6+
{[%clk 0:28:34]} 27. Kg2 {[%clk 0:31:56]} 27... Qxd8 {[%clk 0:28:52]} 28. Ne2
{[%clk 0:29:07]} 28... h6 {[%clk 0:27:15]} 29. Ng3 {[%clk 0:23:30]} 29... Qh4
{[%clk 0:23:41]} 30. Rf4 {[%clk 0:16:02]} 30... Qg5 {[%clk 0:21:03]} 31. Kf3
{[%clk 0:15:54]} 31... d4 {[%clk 0:13:43]} 32. Re8+ {[%clk 0:07:02]} 32... Kh7
{[%clk 0:13:52]} 33. Nf5 {[%clk 0:07:15]} 33... h5 {[%clk 0:09:12]} 34. Re7
{[%clk 0:06:10]} 34... hxg4+ {[%clk 0:07:20]} 35. Ke4 {[%clk 0:05:22]} 35... Kh8
{[%clk 0:04:49]} 36. Rxg7 {[%clk 0:05:23]} 36... Qh4 {[%clk 0:03:55]} 37. Nxh4
{[%clk 0:05:41]} 1-0

[Variant "Standard"]
[Site "Europe Echecs"]